[Event "*** Titled Tuesday Blitz"]
[Site "Chess.com"]
[Date "2020.11.03"]
[Round "3"]
[White "Maghalashvili"]
[Black "Guenplen"]
[Result "1-0"]
[WhiteElo "2683"]
[BlackElo "2890"]
[TimeControl "180+1"]
[EndTime "10:32:48 PST"]
[Termination "Maghalashvili won by resignation"]

1. Nf3 {[%clk 0:02:59.4]} 1... d5 {[%clk 0:02:59.4]} 2. g3 {[%clk 0:02:58]} 2...
c6 {[%clk 0:02:58.3]} 3. Bg2 {[%clk 0:02:58.1]} 3... Bg4 {[%clk 0:02:58.5]} 4.
O-O {[%clk 0:02:58.5]} 4... Nd7 {[%clk 0:02:58.9]} 5. d4 {[%clk 0:02:57.6]} 5...
e6 {[%clk 0:02:59.1]} 6. h3 {[%clk 0:02:58]} 6... Bh5 {[%clk 0:02:54.3]} 7. c4
{[%clk 0:02:58]} 7... Ngf6 {[%clk 0:02:53.7]} 8. cxd5 {[%clk 0:02:53.7]} 8...
exd5 {[%clk 0:02:44.2]} 9. Qb3 {[%clk 0:02:53.4]} 9... Nb6 {[%clk 0:02:42.2]}
10. Nc3 {[%clk 0:02:51.2]} 10... Be7 {[%clk 0:02:39.2]} 11. Ne5 {[%clk
0:02:50.1]} 11... Nfd7 {[%clk 0:02:29.4]} 12. g4 {[%clk 0:02:46.3]} 12... Bg6
{[%clk 0:02:26.7]} 13. f4 {[%clk 0:02:44]} 13... Nxe5 {[%clk 0:02:11]} 14. dxe5
{[%clk 0:02:43.3]} 14... h5 {[%clk 0:02:00]} 15. f5 {[%clk 0:02:34.5]} 15...
Bc5+ {[%clk 0:01:59.8]} 16. e3 {[%clk 0:02:34.4]} 16... hxg4 {[%clk 0:01:59.1]}
17. fxg6 {[%clk 0:02:25.3]} 17... gxh3 {[%clk 0:01:58.6]} 18. gxf7+ {[%clk
0:02:07.2]} 18... Kf8 {[%clk 0:01:58.6]} 19. Bf3 {[%clk 0:01:59.1]} 19... Qg5+
{[%clk 0:01:54.5]} 20. Kh1 {[%clk 0:01:55.7]} 20... Qxe5 {[%clk 0:01:46.4]} 21.
Ne2 {[%clk 0:01:44.3]} 21... g5 {[%clk 0:01:33.5]} 22. Qc3 {[%clk 0:01:28.8]}
22... Qxc3 {[%clk 0:01:32.3]} 23. bxc3 {[%clk 0:01:26.2]} 23... Rh7 {[%clk
0:01:24.3]} 24. Nd4 {[%clk 0:01:24.5]} 24... Bxd4 {[%clk 0:01:17.2]} 25. exd4
{[%clk 0:01:23.7]} 25... Rxf7 {[%clk 0:01:16.5]} 26. Bxg5 {[%clk 0:01:21.9]}
26... Kg7 {[%clk 0:01:16.4]} 27. Bh5 {[%clk 0:01:17.9]} 27... Rd7 {[%clk
0:00:52.9]} 28. Rae1 {[%clk 0:01:12.3]} 28... Nc4 {[%clk 0:00:51.2]} 29. Re6
{[%clk 0:01:08.8]} 29... Kg8 {[%clk 0:00:41]} 30. Rg6+ {[%clk 0:01:05.4]} 30...
Rg7 {[%clk 0:00:33.6]} 31. Rxg7+ {[%clk 0:01:04.8]} 31... Kxg7 {[%clk
0:00:34.5]} 32. Rf7+ {[%clk 0:01:04.8]} 32... Kg8 {[%clk 0:00:34.9]} 33. Rxb7
{[%clk 0:00:53.2]} 33... Nd6 {[%clk 0:00:33.7]} 34. Rc7 {[%clk 0:00:46.8]} 34...
Ne4 {[%clk 0:00:33.4]} 35. Bf7+ {[%clk 0:00:38.6]} 35... Kh8 {[%clk 0:00:16.9]}
36. Bf4 {[%clk 0:00:38.1]} 36... Nxc3 {[%clk 0:00:07.2]} 37. Rxc6 {[%clk
0:00:32.6]} 37... Ne2 {[%clk 0:00:02.4]} 38. Be5+ {[%clk 0:00:31.5]} 38... Kh7
{[%clk 0:00:03]} 39. Bxd5 {[%clk 0:00:28.3]} 39... Rf8 {[%clk 0:00:01.8]} 40.
Be4+ {[%clk 0:00:26.7]} 40... Kg8 {[%clk 0:00:02.1]} 41. Rg6+ {[%clk 0:00:26.5]}
41... Kf7 {[%clk 0:00:02.5]} 42. Rf6+ {[%clk 0:00:26.5]} 42... Ke7 {[%clk
0:00:03.1]} 43. Rxf8 {[%clk 0:00:25]} 43... Kxf8 {[%clk 0:00:04]} 44. Bd3 {[%clk
0:00:16.9]} 44... Nc3 {[%clk 0:00:03.9]} 45. Bc4 {[%clk 0:00:16]} 45... Ne4
{[%clk 0:00:02.9]} 46. Kh2 {[%clk 0:00:14.5]} 46... Ng5 {[%clk 0:00:03.3]} 47.
Bf4 {[%clk 0:00:12.5]} 47... Nf3+ {[%clk 0:00:03.1]} 48. Kxh3 {[%clk 0:00:12.3]}
48... Nxd4 {[%clk 0:00:04]} 49. Be3 {[%clk 0:00:12.6]} 49... Nc2 {[%clk
0:00:04.3]} 50. Bxa7 {[%clk 0:00:11.7]} 50... Ke7 {[%clk 0:00:04.7]} 51. Bd3
{[%clk 0:00:10.6]} 51... Ne1 {[%clk 0:00:04.7]} 52. Be4 {[%clk 0:00:10.7]} 52...
Kd6 {[%clk 0:00:05.1]} 53. Bf2 {[%clk 0:00:08.8]} 53... Ke5 {[%clk 0:00:05.6]}
54. Bh7 {[%clk 0:00:06.7]} 54... Nf3 {[%clk 0:00:05.4]} 55. Kg2 {[%clk 0:00:07]}
55... Nd2 {[%clk 0:00:05.5]} 56. Be3 {[%clk 0:00:05.8]} 56... Nc4 {[%clk
0:00:05.2]} 57. Bc1 {[%clk 0:00:06.1]} 57... Kd5 {[%clk 0:00:02.6]} 58. Kf2
{[%clk 0:00:06.4]} 58... Kc5 {[%clk 0:00:03]} 59. Ke2 {[%clk 0:00:06.8]} 59...
Nb6 {[%clk 0:00:03.1]} 60. Bd2 {[%clk 0:00:06.3]} 60... Kb5 {[%clk 0:00:03.1]}
61. Bd3+ {[%clk 0:00:06.4]} 61... Ka4 {[%clk 0:00:02.6]} 62. Bc1 {[%clk
0:00:06.8]} 62... Nd5 {[%clk 0:00:03]} 63. Kd2 {[%clk 0:00:06.7]} 63... Nb4
{[%clk 0:00:03.4]} 64. Bc4 {[%clk 0:00:06.8]} 64... Nxa2 {[%clk 0:00:03.3]} 65.
Bxa2 {[%clk 0:00:06.9]} 65... Kb4 {[%clk 0:00:04.2]} 66. Bb2 {[%clk 0:00:07.3]}
66... Kc5 {[%clk 0:00:05.1]} 67. Kd3 {[%clk 0:00:07.4]} 67... Kb4 {[%clk
0:00:05.2]} 68. Bd4 {[%clk 0:00:07.4]} 68... Kb5 {[%clk 0:00:05.4]} 69. Bc4+
{[%clk 0:00:07.6]} 69... Kc6 {[%clk 0:00:06.3]} 70. Ke4 {[%clk 0:00:07.7]} 70...
Kd6 {[%clk 0:00:07.2]} 71. Kf5 {[%clk 0:00:08.1]} 71... Kc6 {[%clk 0:00:07.5]}
72. Ke6 {[%clk 0:00:08.6]} 72... Kc7 {[%clk 0:00:08]} 73. Bd5 {[%clk 0:00:08.2]}
73... Kc8 {[%clk 0:00:07.3]} 74. Kd6 {[%clk 0:00:08.6]} 74... Kd8 {[%clk
0:00:07.3]} 75. Bf6+ {[%clk 0:00:08.5]} 75... Ke8 {[%clk 0:00:06.9]} 76. Ke6
{[%clk 0:00:08]} 76... Kf8 {[%clk 0:00:07.4]} 77. Bc6 {[%clk 0:00:07.9]} 77...
Kg8 {[%clk 0:00:08]} 78. Ke7 {[%clk 0:00:07.4]} 78... Kh7 {[%clk 0:00:08.3]} 79.
Bf3 {[%clk 0:00:06.9]} 79... Kh6 {[%clk 0:00:09.1]} 80. Kf7 {[%clk 0:00:05.7]}
80... Kh7 {[%clk 0:00:09.5]} 81. Bg5 {[%clk 0:00:06.1]} 81... Kh8 {[%clk
0:00:09.9]} 82. Bh5 {[%clk 0:00:06.2]} 82... Kh7 {[%clk 0:00:10.1]} 83. Bg6+
{[%clk 0:00:06.7]} 1-0

[Event "*** Titled Tuesday Blitz"]
[Site "Chess.com"]
[Date "2020.11.03"]
[Round "3"]
[White "Orange_Ghost"]
[Black "enriquetejedor"]
[Result "0-1"]
[WhiteElo "2797"]
[BlackElo "2476"]
[TimeControl "180+1"]
[EndTime "10:32:53 PST"]
[Termination "enriquetejedor won by resignation"]

1. d4 {[%clk 0:03:00.9]} 1... Nf6 {[%clk 0:02:49.4]} 2. c4 {[%clk 0:03:00.4]}
2... c6 {[%clk 0:02:45.3]} 3. Nc3 {[%clk 0:03:00.4]} 3... d5 {[%clk 0:02:45.4]}
4. cxd5 {[%clk 0:03:01.3]} 4... cxd5 {[%clk 0:02:45.7]} 5. Bf4 {[%clk 0:03:02]}
5... Nc6 {[%clk 0:02:46]} 6. e3 {[%clk 0:03:02.3]} 6... a6 {[%clk 0:02:46.5]} 7.
Nf3 {[%clk 0:03:02.8]} 7... Bf5 {[%clk 0:02:43.8]} 8. Bd3 {[%clk 0:03:03]} 8...
Bxd3 {[%clk 0:02:43]} 9. Qxd3 {[%clk 0:03:03.9]} 9... e6 {[%clk 0:02:43.9]} 10.
O-O {[%clk 0:03:04]} 10... Bd6 {[%clk 0:02:44.1]} 11. Bg5 {[%clk 0:03:02.1]}
11... O-O {[%clk 0:02:43.5]} 12. Rac1 {[%clk 0:03:01.4]} 12... Rc8 {[%clk
0:02:38.1]} 13. e4 {[%clk 0:02:58.5]} 13... dxe4 {[%clk 0:02:32.7]} 14. Nxe4
{[%clk 0:02:58.5]} 14... Be7 {[%clk 0:02:33.1]} 15. Bxf6 {[%clk 0:02:51.1]}
15... Bxf6 {[%clk 0:02:33.2]} 16. Rfd1 {[%clk 0:02:48.6]} 16... Be7 {[%clk
0:02:00.7]} 17. a3 {[%clk 0:02:37.2]} 17... Qb6 {[%clk 0:01:52.4]} 18. b4 {[%clk
0:02:33.8]} 18... Rfd8 {[%clk 0:01:51.9]} 19. Kh1 {[%clk 0:02:18.3]} 19... h6
{[%clk 0:01:39.6]} 20. Nc3 {[%clk 0:02:12.8]} 20... Bf6 {[%clk 0:01:37.1]} 21.
Na4 {[%clk 0:02:10.4]} 21... Qa7 {[%clk 0:01:33.6]} 22. Nc5 {[%clk 0:02:07.8]}
22... Nxd4 {[%clk 0:01:32.7]} 23. Qe4 {[%clk 0:01:53.7]} 23... Nxf3 {[%clk
0:01:21.8]} 24. Qxf3 {[%clk 0:01:54.6]} 24... b6 {[%clk 0:01:19.7]} 25. Ne4
{[%clk 0:01:47.9]} 25... Rxc1 {[%clk 0:01:12]} 26. Rxc1 {[%clk 0:01:34.8]} 26...
Bd4 {[%clk 0:01:05.1]} 27. Qf4 {[%clk 0:01:28.3]} 27... Qb8 {[%clk 0:00:58.9]}
28. Qf3 {[%clk 0:01:08.4]} 28... Bb2 {[%clk 0:00:53.8]} 29. Rb1 {[%clk
0:01:05.4]} 29... Be5 {[%clk 0:00:47.4]} 30. Qe2 {[%clk 0:00:49.3]} 30... Qb7
{[%clk 0:00:40.1]} 31. Re1 {[%clk 0:00:44.4]} 31... Bb8 {[%clk 0:00:37.1]} 32.
Kg1 {[%clk 0:00:44.2]} 32... Qc7 {[%clk 0:00:36.9]} 33. g3 {[%clk 0:00:41.9]}
33... a5 {[%clk 0:00:37.1]} 34. Rb1 {[%clk 0:00:39.5]} 34... axb4 {[%clk
0:00:37.2]} 35. axb4 {[%clk 0:00:40.4]} 35... Qc6 {[%clk 0:00:35.7]} 36. b5
{[%clk 0:00:38.6]} 36... Qd5 {[%clk 0:00:35.1]} 37. Rc1 {[%clk 0:00:38]} 37...
Be5 {[%clk 0:00:30.4]} 38. Re1 {[%clk 0:00:36.2]} 38... Bd4 {[%clk 0:00:30]} 39.
Rd1 {[%clk 0:00:35.2]} 39... Ra8 {[%clk 0:00:28]} 40. Qf3 {[%clk 0:00:33.6]}
40... Rd8 {[%clk 0:00:25.7]} 41. Kg2 {[%clk 0:00:32.4]} 41... Qxb5 {[%clk
0:00:17]} 42. Nc3 {[%clk 0:00:30.7]} 42... Qe8 {[%clk 0:00:13.2]} 43. Ne4 {[%clk
0:00:28.3]} 43... Be5 {[%clk 0:00:12.4]} 44. Rb1 {[%clk 0:00:27.9]} 44... Rb8
{[%clk 0:00:12.3]} 45. Qe3 {[%clk 0:00:26.7]} 45... Bc7 {[%clk 0:00:12.1]} 46.
Nc3 {[%clk 0:00:26.2]} 46... Qc6+ {[%clk 0:00:11.9]} 47. Kg1 {[%clk 0:00:26.2]}
47... b5 {[%clk 0:00:12.2]} 48. Qd3 {[%clk 0:00:26]} 48... b4 {[%clk 0:00:12.4]}
49. Ne4 {[%clk 0:00:26.6]} 49... b3 {[%clk 0:00:12.7]} 50. Nd2 {[%clk
0:00:25.3]} 50... b2 {[%clk 0:00:13]} 51. Nb3 {[%clk 0:00:22.7]} 51... Be5
{[%clk 0:00:11.9]} 52. Nd2 {[%clk 0:00:21.4]} 52... Rb5 {[%clk 0:00:10.3]} 53.
Nf3 {[%clk 0:00:20.5]} 53... Bf6 {[%clk 0:00:09.9]} 54. Qe2 {[%clk 0:00:20.5]}
54... Rd5 {[%clk 0:00:08.6]} 55. Kg2 {[%clk 0:00:20.1]} 55... Qc1 {[%clk
0:00:07.8]} 56. Qe4 {[%clk 0:00:18.6]} 56... Qc7 {[%clk 0:00:04.3]} 57. h4
{[%clk 0:00:18.4]} 57... Qd7 {[%clk 0:00:04.6]} 58. Qe2 {[%clk 0:00:18]} 58...
Rd6 {[%clk 0:00:04.1]} 59. g4 {[%clk 0:00:18.4]} 59... Rc6 {[%clk 0:00:03.3]}
60. g5 {[%clk 0:00:18.4]} 60... hxg5 {[%clk 0:00:03.8]} 61. hxg5 {[%clk
0:00:19.3]} 61... Bc3 {[%clk 0:00:04.3]} 62. Qe3 {[%clk 0:00:18.8]} 62... e5
{[%clk 0:00:03.9]} 63. Qe4 {[%clk 0:00:18.6]} 63... Rc8 {[%clk 0:00:02.4]} 64.
Rh1 {[%clk 0:00:18.5]} 64... g6 {[%clk 0:00:02.2]} 65. Rb1 {[%clk 0:00:18.2]}
65... Kf8 {[%clk 0:00:02.1]} 66. Nh2 {[%clk 0:00:18.3]} 66... Qf5 {[%clk
0:00:02]} 67. Qxf5 {[%clk 0:00:16.6]} 67... gxf5 {[%clk 0:00:02.9]} 68. Nf1
{[%clk 0:00:17.4]} 68... f4 {[%clk 0:00:02.9]} 69. Nh2 {[%clk 0:00:17.1]} 69...
Bd4 {[%clk 0:00:03.3]} 70. Nf1 {[%clk 0:00:14.7]} 70... Rc1 {[%clk 0:00:03.7]}
71. Nd2 {[%clk 0:00:15.3]} 71... Rxb1 {[%clk 0:00:03.7]} 72. Nxb1 {[%clk
0:00:16.2]} 72... Kg7 {[%clk 0:00:03.6]} 73. Kf3 {[%clk 0:00:16.4]} 73... Kg6
{[%clk 0:00:03.4]} 74. Kg4 {[%clk 0:00:16.9]} 74... Bxf2 {[%clk 0:00:03.6]} 75.
Nd2 {[%clk 0:00:17.5]} 75... Bb6 {[%clk 0:00:03.4]} 76. Nb1 {[%clk 0:00:16.6]}
76... Bc7 {[%clk 0:00:03.3]} 77. Nc3 {[%clk 0:00:17]} 77... e4 {[%clk
0:00:03.4]} 78. Nb1 {[%clk 0:00:16.6]} 78... Bd8 {[%clk 0:00:03.6]} 79. Nd2
{[%clk 0:00:16.4]} 79... Bxg5 {[%clk 0:00:03.2]} 80. Nb1 {[%clk 0:00:16.3]}
80... f5+ {[%clk 0:00:03.5]} 81. Kh3 {[%clk 0:00:16.2]} 81... f3 {[%clk
0:00:04.4]} 82. Kg3 {[%clk 0:00:16.5]} 82... Bh4+ {[%clk 0:00:04]} 83. Kh3
{[%clk 0:00:15.2]} 83... f2 {[%clk 0:00:04.9]} 84. Kg2 {[%clk 0:00:16.1]} 84...
e3 {[%clk 0:00:05.2]} 85. Kf1 {[%clk 0:00:16.4]} 85... f4 {[%clk 0:00:05.7]} 86.
Nc3 {[%clk 0:00:16.6]} 86... f3 {[%clk 0:00:05.8]} 87. Ne2 {[%clk 0:00:15.8]}
87... b1=Q+ {[%clk 0:00:05.5]} 0-1

[Event "*** Titled Tuesday Blitz"]
[Site "Chess.com"]
[Date "2020.11.03"]
[Round "3"]
[White "almatyonelove"]
[Black "Fandorine"]
[Result "1-0"]
[WhiteElo "2591"]
[BlackElo "2826"]
[TimeControl "180+1"]
[EndTime "10:34:05 PST"]
[Termination "almatyonelove won by resignation"]

1. d4 {[%clk 0:02:59.4]} 1... Nf6 {[%clk 0:03:00.1]} 2. c4 {[%clk 0:02:58]} 2...
g6 {[%clk 0:03:00.2]} 3. Nc3 {[%clk 0:02:57.2]} 3... Bg7 {[%clk 0:03:00.6]} 4.
e4 {[%clk 0:02:56.8]} 4... d6 {[%clk 0:02:59.7]} 5. h3 {[%clk 0:02:57.1]} 5...
O-O {[%clk 0:03:00.1]} 6. Be3 {[%clk 0:02:57.5]} 6... Na6 {[%clk 0:02:59.3]} 7.
Bd3 {[%clk 0:02:54.6]} 7... e5 {[%clk 0:02:57.3]} 8. d5 {[%clk 0:02:53.5]} 8...
Nc5 {[%clk 0:02:54.3]} 9. Bc2 {[%clk 0:02:53.4]} 9... a5 {[%clk 0:02:54.6]} 10.
Nge2 {[%clk 0:02:52.9]} 10... Bd7 {[%clk 0:02:52.3]} 11. g4 {[%clk 0:02:52.2]}
11... Qe8 {[%clk 0:02:52]} 12. a4 {[%clk 0:02:45.2]} 12... Bc8 {[%clk
0:02:46.2]} 13. Ng3 {[%clk 0:02:44.4]} 13... Nfd7 {[%clk 0:02:46.3]} 14. Qd2
{[%clk 0:02:37.2]} 14... Na6 {[%clk 0:02:45]} 15. Ra3 {[%clk 0:02:34.8]} 15...
Ndc5 {[%clk 0:02:45]} 16. f3 {[%clk 0:02:28.1]} 16... Bd7 {[%clk 0:02:44.2]} 17.
h4 {[%clk 0:02:27]} 17... Nb4 {[%clk 0:02:44.1]} 18. h5 {[%clk 0:02:14.2]} 18...
Qe7 {[%clk 0:02:42.6]} 19. Bb1 {[%clk 0:01:56.5]} 19... c6 {[%clk 0:02:25.2]}
20. Kf2 {[%clk 0:01:49.4]} 20... cxd5 {[%clk 0:02:21.5]} 21. cxd5 {[%clk
0:01:45.8]} 21... Rac8 {[%clk 0:02:21.3]} 22. Kg2 {[%clk 0:01:39.3]} 22... b6
{[%clk 0:01:50]} 23. Bg5 {[%clk 0:01:28.1]} 23... Bf6 {[%clk 0:01:48.9]} 24. Be3
{[%clk 0:01:26]} 24... Rc7 {[%clk 0:01:40.7]} 25. Qd1 {[%clk 0:01:06.1]} 25...
Bg5 {[%clk 0:01:31.5]} 26. Bf2 {[%clk 0:01:03.4]} 26... Qf6 {[%clk 0:01:20.7]}
27. Nce2 {[%clk 0:01:01.2]} 27... b5 {[%clk 0:01:02.4]} 28. axb5 {[%clk
0:00:59.9]} 28... Bxb5 {[%clk 0:01:03.3]} 29. Rxa5 {[%clk 0:00:59.3]} 29... Bxe2
{[%clk 0:01:03.1]} 30. Qxe2 {[%clk 0:00:59]} 30... Nb3 {[%clk 0:01:03.2]} 31.
Rb5 {[%clk 0:00:56.2]} 31... Nc1 {[%clk 0:00:58.3]} 32. Qd1 {[%clk 0:00:56]}
32... Na6 {[%clk 0:00:48.2]} 33. Rb6 {[%clk 0:00:55.9]} 33... Nc5 {[%clk
0:00:48.2]} 34. b4 {[%clk 0:00:40.7]} 34... N5b3 {[%clk 0:00:41.2]} 35. Rc6
{[%clk 0:00:39.1]} 35... Rb7 {[%clk 0:00:37.7]} 36. Qe1 {[%clk 0:00:14.1]} 36...
Nd2 {[%clk 0:00:35]} 37. Rxc1 {[%clk 0:00:05.1]} 37... Qxf3+ {[%clk 0:00:33.2]}
38. Kh2 {[%clk 0:00:05.2]} 38... Qxg4 {[%clk 0:00:33.1]} 39. Qd1 {[%clk
0:00:04.7]} 39... Nf3+ {[%clk 0:00:31.8]} 40. Kg2 {[%clk 0:00:05]} 40... Bxc1
{[%clk 0:00:26.6]} 41. Qxf3 {[%clk 0:00:03.8]} 41... Qxf3+ {[%clk 0:00:26.9]}
42. Kxf3 {[%clk 0:00:04.7]} 42... Bd2 {[%clk 0:00:27.6]} 43. Bd3 {[%clk
0:00:03.2]} 43... Rxb4 {[%clk 0:00:26.5]} 44. Ke2 {[%clk 0:00:04.1]} 44... Bf4
{[%clk 0:00:26.6]} 45. Rb1 {[%clk 0:00:03.6]} 45... Rxb1 {[%clk 0:00:24.5]} 46.
Bxb1 {[%clk 0:00:04.5]} 46... Rb8 {[%clk 0:00:25.4]} 47. Bd3 {[%clk 0:00:04.2]}
47... Rb2+ {[%clk 0:00:25.6]} 48. Kf3 {[%clk 0:00:03.9]} 48... Rb3 {[%clk
0:00:24.9]} 49. Ke2 {[%clk 0:00:04.1]} 49... Kg7 {[%clk 0:00:25.3]} 50. Nf1
{[%clk 0:00:03.9]} 50... Rb2+ {[%clk 0:00:24.2]} 51. Kf3 {[%clk 0:00:04.1]}
51... Rb3 {[%clk 0:00:21.5]} 52. Ke2 {[%clk 0:00:04]} 52... gxh5 {[%clk
0:00:19.6]} 53. Ba6 {[%clk 0:00:01.5]} 53... Ra3 {[%clk 0:00:17.3]} 54. Bc8
{[%clk 0:00:02.4]} 54... Ra4 {[%clk 0:00:17.3]} 55. Bf5 {[%clk 0:00:03.1]} 55...
Ra2+ {[%clk 0:00:15.8]} 56. Kf3 {[%clk 0:00:04]} 56... Ra3+ {[%clk 0:00:16.3]}
57. Kg2 {[%clk 0:00:04.7]} 57... Bg5 {[%clk 0:00:15.4]} 58. Ng3 {[%clk
0:00:04.5]} 58... h4 {[%clk 0:00:15.9]} 59. Ne2 {[%clk 0:00:03.6]} 59... h5
{[%clk 0:00:15.8]} 60. Ng1 {[%clk 0:00:04.2]} 60... Be3 {[%clk 0:00:14.9]} 61.
Nh3 {[%clk 0:00:05.1]} 61... Bxf2 {[%clk 0:00:15.1]} 62. Kxf2 {[%clk 0:00:05.7]}
62... Rg3 {[%clk 0:00:14.6]} 63. Kf1 {[%clk 0:00:05.4]} 63... Kf6 {[%clk
0:00:15]} 64. Kf2 {[%clk 0:00:05.9]} 64... Ke7 {[%clk 0:00:14]} 65. Kf1 {[%clk
0:00:04.6]} 65... Kd8 {[%clk 0:00:14.2]} 66. Nf2 {[%clk 0:00:04.4]} 66... Kc7
{[%clk 0:00:12.5]} 67. Nh1 {[%clk 0:00:04.6]} 67... Rg5 {[%clk 0:00:11.3]} 68.
Nf2 {[%clk 0:00:04.8]} 68... Kb6 {[%clk 0:00:11.9]} 69. Nd3 {[%clk 0:00:05]}
69... Kb5 {[%clk 0:00:12]} 70. Ne1 {[%clk 0:00:05.5]} 70... Rg3 {[%clk 0:00:10]}
71. Kf2 {[%clk 0:00:06.1]} 71... Kc5 {[%clk 0:00:09.7]} 72. Ng2 {[%clk
0:00:06.7]} 72... Kd4 {[%clk 0:00:07.1]} 73. Nxh4 {[%clk 0:00:07.2]} 73... Ra3
{[%clk 0:00:06.6]} 74. Nf3+ {[%clk 0:00:07.9]} 74... Kd3 {[%clk 0:00:06.6]} 75.
Ng5 {[%clk 0:00:08.8]} 75... h4 {[%clk 0:00:07]} 76. Kg2 {[%clk 0:00:08.5]}
76... Ke3 {[%clk 0:00:07.1]} 77. Nxf7 {[%clk 0:00:09.4]} 77... Ra6 {[%clk
0:00:07]} 78. Ng5 {[%clk 0:00:09.3]} 78... Kf4 {[%clk 0:00:06.2]} 79. Ne6+
{[%clk 0:00:07.8]} 79... Ke3 {[%clk 0:00:06.7]} 80. Kh3 {[%clk 0:00:08.2]} 80...
Kd3 {[%clk 0:00:05.4]} 81. Kxh4 {[%clk 0:00:08.6]} 81... Kc4 {[%clk 0:00:06.3]}
82. Kg5 {[%clk 0:00:08.3]} 82... Kb5 {[%clk 0:00:06.8]} 83. Kf6 {[%clk
0:00:08.8]} 83... Kb6 {[%clk 0:00:07.3]} 84. Ke7 {[%clk 0:00:09.3]} 84... Kb5
{[%clk 0:00:08.2]} 85. Kd7 {[%clk 0:00:09.5]} 85... Kb4 {[%clk 0:00:08.9]} 86.
Nc7 {[%clk 0:00:09.7]} 86... Rb6 {[%clk 0:00:08.4]} 87. Ne8 {[%clk 0:00:09.8]}
87... Kc5 {[%clk 0:00:08.4]} 88. Ke6 {[%clk 0:00:10.1]} 88... Rb7 {[%clk
0:00:06.5]} 89. Nf6 {[%clk 0:00:09.3]} 89... Ra7 {[%clk 0:00:04]} 90. Nd7+
{[%clk 0:00:08.2]} 90... Kd4 {[%clk 0:00:04.6]} 91. Nf8 {[%clk 0:00:07.7]} 91...
Ra6 {[%clk 0:00:05.5]} 92. Ng6 {[%clk 0:00:07.8]} 92... Rb6 {[%clk 0:00:05.2]}
93. Ne7 {[%clk 0:00:08.1]} 93... Kc5 {[%clk 0:00:06.1]} 94. Nc6 {[%clk
0:00:08.1]} 94... Rb1 {[%clk 0:00:06.2]} 95. Nd8 {[%clk 0:00:06.2]} 95... Rb8
{[%clk 0:00:06.7]} 96. Nf7 {[%clk 0:00:06]} 96... Re8+ {[%clk 0:00:06.8]} 97.
Kd7 {[%clk 0:00:05.8]} 97... Ra8 {[%clk 0:00:06.8]} 98. Ke6 {[%clk 0:00:03.6]}
98... Re8+ {[%clk 0:00:04.9]} 99. Kf6 {[%clk 0:00:03.8]} 99... Ra8 {[%clk
0:00:05]} 100. Ng5 {[%clk 0:00:04.7]} 100... Rf8+ {[%clk 0:00:05.1]} 101. Ke7
{[%clk 0:00:04.4]} 101... Ra8 {[%clk 0:00:02.6]} 102. Ne6+ {[%clk 0:00:05.3]}
102... Kb6 {[%clk 0:00:03.1]} 103. Kxd6 {[%clk 0:00:06.2]} 103... Rg8 {[%clk
0:00:03]} 104. Kxe5 {[%clk 0:00:07.1]} 104... Rg1 {[%clk 0:00:03.7]} 105. Kf6
{[%clk 0:00:07.8]} 105... Rd1 {[%clk 0:00:04.3]} 106. Ke7 {[%clk 0:00:06.6]}
106... Re1 {[%clk 0:00:04]} 107. d6 {[%clk 0:00:06.8]} 107... Rd1 {[%clk
0:00:04.5]} 108. d7 {[%clk 0:00:07.3]} 1-0